{"text_format":"1","workbook":"xlsx","n_sheets":4,"sheets":["תבנית","לפני הסתרת עמודות","לאחר הסתרת עמודות","דפים"],"not_rendered":{"charts":0,"images":0,"macros":1,"external_links":0,"defined_names":3,"comments":0,"pivot_tables":0},"unopened":[],"bounds":{"document_bytes":16777216,"sheet_cells":100000,"rows_first":2000,"rows_last":500,"rows_between":2000,"halvings":0,"cell_chars":16384,"cell_head_chars":4096},"cells_cut":0,"cells_raw":0,"read":"whole","date_system":"1900"}

{"sheet":"תבנית","index":0,"n_rows":41,"n_cols":23,"rows_kept":41,"cut":false,"hidden":false,"merged":[[0,11,1,13],[0,15,1,17],[2,1,2,6]]}
[null,"בס\"ד",null,null,null,null,null,null,null,null,null,"מסכת",null,null,null,"ברכות"]
["מס'",null,null,null,null,null,null,"מס'",null,null,null,null,null,null,"מס'",null,null,null,null,null,null,"מס'"]
[null,"פרק א - מאימתי",null,null,null,null,null,21,{"$f":"IFERROR(VLOOKUP(H3,dapim,2),\"\")","v":"כא."},null,null,null,null,null,36,{"$f":"IFERROR(VLOOKUP(O3,dapim,2),\"\")","v":"לו."},null,null,null,null,null,53.5,{"$f":"IFERROR(VLOOKUP(V3,dapim,2),\"\")","v":"נג:"}]
[2,{"$f":"IFERROR(VLOOKUP(A4,dapim,2),\"\")","v":"ב."},null,null,null,null,null,21.5,{"$f":"IFERROR(VLOOKUP(H4,dapim,2),\"\")","v":"כא:"},null,null,null,null,null,36.5,{"$f":"IFERROR(VLOOKUP(O4,dapim,2),\"\")","v":"לו:"},null,null,null,null,null,54,{"$f":"IFERROR(VLOOKUP(V4,dapim,2),\"\")","v":"נד."}]
[2.5,{"$f":"IFERROR(VLOOKUP(A5,dapim,2),\"\")","v":"ב:"},null,null,null,null,null,22,{"$f":"IFERROR(VLOOKUP(H5,dapim,2),\"\")","v":"כב."},null,null,null,null,null,37,{"$f":"IFERROR(VLOOKUP(O5,dapim,2),\"\")","v":"לז."},null,null,null,null,null,54.5,{"$f":"IFERROR(VLOOKUP(V5,dapim,2),\"\")","v":"נד:"}]
[3,{"$f":"IFERROR(VLOOKUP(A6,dapim,2),\"\")","v":"ג."},null,null,null,null,null,22.5,{"$f":"IFERROR(VLOOKUP(H6,dapim,2),\"\")","v":"כב:"},null,null,null,null,null,37.5,{"$f":"IFERROR(VLOOKUP(O6,dapim,2),\"\")","v":"לז:"},null,null,null,null,null,55,{"$f":"IFERROR(VLOOKUP(V6,dapim,2),\"\")","v":"נה."}]
[3.5,{"$f":"IFERROR(VLOOKUP(A7,dapim,2),\"\")","v":"ג:"},null,null,null,null,null,23,{"$f":"IFERROR(VLOOKUP(H7,dapim,2),\"\")","v":"כג."},null,null,null,null,null,38,{"$f":"IFERROR(VLOOKUP(O7,dapim,2),\"\")","v":"לח."},null,null,null,null,null,55.5,{"$f":"IFERROR(VLOOKUP(V7,dapim,2),\"\")","v":"נה:"}]
[4,{"$f":"IFERROR(VLOOKUP(A8,dapim,2),\"\")","v":"ד."},null,null,null,null,null,23.5,{"$f":"IFERROR(VLOOKUP(H8,dapim,2),\"\")","v":"כג:"},null,null,null,null,null,38.5,{"$f":"IFERROR(VLOOKUP(O8,dapim,2),\"\")","v":"לח:"},null,null,null,null,null,56,{"$f":"IFERROR(VLOOKUP(V8,dapim,2),\"\")","v":"נו."}]
[4.5,{"$f":"IFERROR(VLOOKUP(A9,dapim,2),\"\")","v":"ד:"},null,null,null,null,null,24,{"$f":"IFERROR(VLOOKUP(H9,dapim,2),\"\")","v":"כד."},null,null,null,null,null,39,{"$f":"IFERROR(VLOOKUP(O9,dapim,2),\"\")","v":"לט."},null,null,null,null,null,56.5,{"$f":"IFERROR(VLOOKUP(V9,dapim,2),\"\")","v":"נו:"}]
[5,{"$f":"IFERROR(VLOOKUP(A10,dapim,2),\"\")","v":"ה."},null,null,null,null,null,24.5,{"$f":"IFERROR(VLOOKUP(H10,dapim,2),\"\")","v":"כד:"},null,null,null,null,null,39.5,{"$f":"IFERROR(VLOOKUP(O10,dapim,2),\"\")","v":"לט:"},null,null,null,null,null,57,{"$f":"IFERROR(VLOOKUP(V10,dapim,2),\"\")","v":"נז."}]
[5.5,{"$f":"IFERROR(VLOOKUP(A11,dapim,2),\"\")","v":"ה:"},null,null,null,null,null,25,{"$f":"IFERROR(VLOOKUP(H11,dapim,2),\"\")","v":"כה."},null,null,null,null,null,40,{"$f":"IFERROR(VLOOKUP(O11,dapim,2),\"\")","v":"מ."},null,null,null,null,null,57.5,{"$f":"IFERROR(VLOOKUP(V11,dapim,2),\"\")","v":"נז:"}]
[6,{"$f":"IFERROR(VLOOKUP(A12,dapim,2),\"\")","v":"ו."},null,null,null,null,null,25.5,{"$f":"IFERROR(VLOOKUP(H12,dapim,2),\"\")","v":"כה:"},null,null,null,null,null,40.5,{"$f":"IFERROR(VLOOKUP(O12,dapim,2),\"\")","v":"מ:"},null,null,null,null,null,58,{"$f":"IFERROR(VLOOKUP(V12,dapim,2),\"\")","v":"נח."}]
[6.5,{"$f":"IFERROR(VLOOKUP(A13,dapim,2),\"\")","v":"ו:"},null,null,null,null,null,26,{"$f":"IFERROR(VLOOKUP(H13,dapim,2),\"\")","v":"כו."},null,null,null,null,null,41,{"$f":"IFERROR(VLOOKUP(O13,dapim,2),\"\")","v":"מא."},null,null,null,null,null,58.5,{"$f":"IFERROR(VLOOKUP(V13,dapim,2),\"\")","v":"נח:"}]
[7,{"$f":"IFERROR(VLOOKUP(A14,dapim,2),\"\")","v":"ז."},null,null,null,null,null,26.5,{"$f":"IFERROR(VLOOKUP(H14,dapim,2),\"\")","v":"כו:"},null,null,null,null,null,41.5,{"$f":"IFERROR(VLOOKUP(O14,dapim,2),\"\")","v":"מא:"},null,null,null,null,null,59,{"$f":"IFERROR(VLOOKUP(V14,dapim,2),\"\")","v":"נט."}]
[7.5,{"$f":"IFERROR(VLOOKUP(A15,dapim,2),\"\")","v":"ז:"},null,null,null,null,null,27,{"$f":"IFERROR(VLOOKUP(H15,dapim,2),\"\")","v":"כז."},null,null,null,null,null,42,{"$f":"IFERROR(VLOOKUP(O15,dapim,2),\"\")","v":"מב."},null,null,null,null,null,59.5,{"$f":"IFERROR(VLOOKUP(V15,dapim,2),\"\")","v":"נט:"}]
[8,{"$f":"IFERROR(VLOOKUP(A16,dapim,2),\"\")","v":"ח."},null,null,null,null,null,27.5,{"$f":"IFERROR(VLOOKUP(H16,dapim,2),\"\")","v":"כז:"},null,null,null,null,null,42.5,{"$f":"IFERROR(VLOOKUP(O16,dapim,2),\"\")","v":"מב:"},null,null,null,null,null,60,{"$f":"IFERROR(VLOOKUP(V16,dapim,2),\"\")","v":"ס."}]
[8.5,{"$f":"IFERROR(VLOOKUP(A17,dapim,2),\"\")","v":"ח:"},null,null,null,null,null,28,{"$f":"IFERROR(VLOOKUP(H17,dapim,2),\"\")","v":"כח."},null,null,null,null,null,43,{"$f":"IFERROR(VLOOKUP(O17,dapim,2),\"\")","v":"מג."},null,null,null,null,null,60.5,{"$f":"IFERROR(VLOOKUP(V17,dapim,2),\"\")","v":"ס:"}]
[9,{"$f":"IFERROR(VLOOKUP(A18,dapim,2),\"\")","v":"ט."},null,null,null,null,null,28.5,{"$f":"IFERROR(VLOOKUP(H18,dapim,2),\"\")","v":"כח:"},null,null,null,null,null,43.5,{"$f":"IFERROR(VLOOKUP(O18,dapim,2),\"\")","v":"מג:"},null,null,null,null,null,61,{"$f":"IFERROR(VLOOKUP(V18,dapim,2),\"\")","v":"סא."}]
[9.5,{"$f":"IFERROR(VLOOKUP(A19,dapim,2),\"\")","v":"ט:"},null,null,null,null,null,29,{"$f":"IFERROR(VLOOKUP(H19,dapim,2),\"\")","v":"כט."},null,null,null,null,null,44,{"$f":"IFERROR(VLOOKUP(O19,dapim,2),\"\")","v":"מד."},null,null,null,null,null,61.5,{"$f":"IFERROR(VLOOKUP(V19,dapim,2),\"\")","v":"סא:"}]
[10,{"$f":"IFERROR(VLOOKUP(A20,dapim,2),\"\")","v":"י."},null,null,null,null,null,29.5,{"$f":"IFERROR(VLOOKUP(H20,dapim,2),\"\")","v":"כט:"},null,null,null,null,null,44.5,{"$f":"IFERROR(VLOOKUP(O20,dapim,2),\"\")","v":"מד:"},null,null,null,null,null,62,{"$f":"IFERROR(VLOOKUP(V20,dapim,2),\"\")","v":"סב."}]
[10.5,{"$f":"IFERROR(VLOOKUP(A21,dapim,2),\"\")","v":"י:"},null,null,null,null,null,30,{"$f":"IFERROR(VLOOKUP(H21,dapim,2),\"\")","v":"ל."},null,null,null,null,null,45,{"$f":"IFERROR(VLOOKUP(O21,dapim,2),\"\")","v":"מה."},null,null,null,null,null,62.5,{"$f":"IFERROR(VLOOKUP(V21,dapim,2),\"\")","v":"סב:"}]
[11,{"$f":"IFERROR(VLOOKUP(A22,dapim,2),\"\")","v":"יא."},null,null,null,null,null,30.5,{"$f":"IFERROR(VLOOKUP(H22,dapim,2),\"\")","v":"ל:"},null,null,null,null,null,45.5,{"$f":"IFERROR(VLOOKUP(O22,dapim,2),\"\")","v":"מה:"},null,null,null,null,null,63,{"$f":"IFERROR(VLOOKUP(V22,dapim,2),\"\")","v":"סג."}]
[11.5,{"$f":"IFERROR(VLOOKUP(A23,dapim,2),\"\")","v":"יא:"},null,null,null,null,null,31,{"$f":"IFERROR(VLOOKUP(H23,dapim,2),\"\")","v":"לא."},null,null,null,null,null,46,{"$f":"IFERROR(VLOOKUP(O23,dapim,2),\"\")","v":"מו."},null,null,null,null,null,null,{"$f":"IFERROR(VLOOKUP(V23,dapim,2),\"\")","v":""}]
[12,{"$f":"IFERROR(VLOOKUP(A24,dapim,2),\"\")","v":"יב."},null,null,null,null,null,31.5,{"$f":"IFERROR(VLOOKUP(H24,dapim,2),\"\")","v":"לא:"},null,null,null,null,null,46.5,{"$f":"IFERROR(VLOOKUP(O24,dapim,2),\"\")","v":"מו:"},null,null,null,null,null,null,{"$f":"IFERROR(VLOOKUP(V24,dapim,2),\"\")","v":""}]
[12.5,{"$f":"IFERROR(VLOOKUP(A25,dapim,2),\"\")","v":"יב:"},null,null,null,null,null,32,{"$f":"IFERROR(VLOOKUP(H25,dapim,2),\"\")","v":"לב."},null,null,null,null,null,47,{"$f":"IFERROR(VLOOKUP(O25,dapim,2),\"\")","v":"מז."},null,null,null,null,null,null,{"$f":"IFERROR(VLOOKUP(V25,dapim,2),\"\")","v":""}]
[13,{"$f":"IFERROR(VLOOKUP(A26,dapim,2),\"\")","v":"יג."},null,null,null,null,null,32.5,{"$f":"IFERROR(VLOOKUP(H26,dapim,2),\"\")","v":"לב:"},null,null,null,null,null,47.5,{"$f":"IFERROR(VLOOKUP(O26,dapim,2),\"\")","v":"מז:"},null,null,null,null,null,null,{"$f":"IFERROR(VLOOKUP(V26,dapim,2),\"\")","v":""}]
[13.5,{"$f":"IFERROR(VLOOKUP(A27,dapim,2),\"\")","v":"יג:"},null,null,null,null,null,33,{"$f":"IFERROR(VLOOKUP(H27,dapim,2),\"\")","v":"לג."},null,null,null,null,null,48,{"$f":"IFERROR(VLOOKUP(O27,dapim,2),\"\")","v":"מח."},null,null,null,null,null,null,{"$f":"IFERROR(VLOOKUP(V27,dapim,2),\"\")","v":""}]
[14,{"$f":"IFERROR(VLOOKUP(A28,dapim,2),\"\")","v":"יד."},null,null,null,null,null,33.5,{"$f":"IFERROR(VLOOKUP(H28,dapim,2),\"\")","v":"לג:"},null,null,null,null,null,48.5,{"$f":"IFERROR(VLOOKUP(O28,dapim,2),\"\")","v":"מח:"},null,null,null,null,null,null,{"$f":"IFERROR(VLOOKUP(V28,dapim,2),\"\")","v":""}]
[14.5,{"$f":"IFERROR(VLOOKUP(A29,dapim,2),\"\")","v":"יד:"},null,null,null,null,null,34,{"$f":"IFERROR(VLOOKUP(H29,dapim,2),\"\")","v":"לד."},null,null,null,null,null,49,{"$f":"IFERROR(VLOOKUP(O29,dapim,2),\"\")","v":"מט."},null,null,null,null,null,null,{"$f":"IFERROR(VLOOKUP(V29,dapim,2),\"\")","v":""}]
[15,{"$f":"IFERROR(VLOOKUP(A30,dapim,2),\"\")","v":"טו."},null,null,null,null,null,34.5,{"$f":"IFERROR(VLOOKUP(H30,dapim,2),\"\")","v":"לד:"},null,null,null,null,null,49.5,{"$f":"IFERROR(VLOOKUP(O30,dapim,2),\"\")","v":"מט:"},null,null,null,null,null,null,{"$f":"IFERROR(VLOOKUP(V30,dapim,2),\"\")","v":""}]
[15.5,{"$f":"IFERROR(VLOOKUP(A31,dapim,2),\"\")","v":"טו:"},null,null,null,null,null,35,{"$f":"IFERROR(VLOOKUP(H31,dapim,2),\"\")","v":"לה."},null,null,null,null,null,50,{"$f":"IFERROR(VLOOKUP(O31,dapim,2),\"\")","v":"נ."},null,null,null,null,null,null,{"$f":"IFERROR(VLOOKUP(V31,dapim,2),\"\")","v":""}]
[16,{"$f":"IFERROR(VLOOKUP(A32,dapim,2),\"\")","v":"טז."},null,null,null,null,null,35.5,{"$f":"IFERROR(VLOOKUP(H32,dapim,2),\"\")","v":"לה:"},null,null,null,null,null,50.5,{"$f":"IFERROR(VLOOKUP(O32,dapim,2),\"\")","v":"נ:"},null,null,null,null,null,null,{"$f":"IFERROR(VLOOKUP(V32,dapim,2),\"\")","v":""}]
[16.5,{"$f":"IFERROR(VLOOKUP(A33,dapim,2),\"\")","v":"טז:"},null,null,null,null,null,36,{"$f":"IFERROR(VLOOKUP(H33,dapim,2),\"\")","v":"לו."},null,null,null,null,null,51,{"$f":"IFERROR(VLOOKUP(O33,dapim,2),\"\")","v":"נא."},null,null,null,null,null,null,{"$f":"IFERROR(VLOOKUP(V33,dapim,2),\"\")","v":""}]
[17,{"$f":"IFERROR(VLOOKUP(A34,dapim,2),\"\")","v":"יז."},null,null,null,null,null,36.5,{"$f":"IFERROR(VLOOKUP(H34,dapim,2),\"\")","v":"לו:"},null,null,null,null,null,51.5,{"$f":"IFERROR(VLOOKUP(O34,dapim,2),\"\")","v":"נא:"},null,null,null,null,null,null,{"$f":"IFERROR(VLOOKUP(V34,dapim,2),\"\")","v":""}]
[17.5,{"$f":"IFERROR(VLOOKUP(A35,dapim,2),\"\")","v":"יז:"},null,null,null,null,null,37,{"$f":"IFERROR(VLOOKUP(H35,dapim,2),\"\")","v":"לז."},null,null,null,null,null,52,{"$f":"IFERROR(VLOOKUP(O35,dapim,2),\"\")","v":"נב."},null,null,null,null,null,null,{"$f":"IFERROR(VLOOKUP(V35,dapim,2),\"\")","v":""}]
[18,{"$f":"IFERROR(VLOOKUP(A36,dapim,2),\"\")","v":"יח."},null,null,null,null,null,37.5,{"$f":"IFERROR(VLOOKUP(H36,dapim,2),\"\")","v":"לז:"},null,null,null,null,null,52.5,{"$f":"IFERROR(VLOOKUP(O36,dapim,2),\"\")","v":"נב:"},null,null,null,null,null,null,{"$f":"IFERROR(VLOOKUP(V36,dapim,2),\"\")","v":""}]
[18.5,{"$f":"IFERROR(VLOOKUP(A37,dapim,2),\"\")","v":"יח:"},null,null,null,null,null,38,{"$f":"IFERROR(VLOOKUP(H37,dapim,2),\"\")","v":"לח."},null,null,null,null,null,53,{"$f":"IFERROR(VLOOKUP(O37,dapim,2),\"\")","v":"נג."},null,null,null,null,null,null,{"$f":"IFERROR(VLOOKUP(V37,dapim,2),\"\")","v":""}]
[19,{"$f":"IFERROR(VLOOKUP(A38,dapim,2),\"\")","v":"יט."},null,null,null,null,null,38.5,{"$f":"IFERROR(VLOOKUP(H38,dapim,2),\"\")","v":"לח:"},null,null,null,null,null,53.5,{"$f":"IFERROR(VLOOKUP(O38,dapim,2),\"\")","v":"נג:"},null,null,null,null,null,null,{"$f":"IFERROR(VLOOKUP(V38,dapim,2),\"\")","v":""}]
[19.5,{"$f":"IFERROR(VLOOKUP(A39,dapim,2),\"\")","v":"יט:"},null,null,null,null,null,39,{"$f":"IFERROR(VLOOKUP(H39,dapim,2),\"\")","v":"לט."},null,null,null,null,null,54,{"$f":"IFERROR(VLOOKUP(O39,dapim,2),\"\")","v":"נד."},null,null,null,null,null,null,{"$f":"IFERROR(VLOOKUP(V39,dapim,2),\"\")","v":""}]
[20,{"$f":"IFERROR(VLOOKUP(A40,dapim,2),\"\")","v":"כ."},null,null,null,null,null,39.5,{"$f":"IFERROR(VLOOKUP(H40,dapim,2),\"\")","v":"לט:"},null,null,null,null,null,54.5,{"$f":"IFERROR(VLOOKUP(O40,dapim,2),\"\")","v":"נד:"},null,null,null,null,null,null,{"$f":"IFERROR(VLOOKUP(V40,dapim,2),\"\")","v":""}]
[20.5,{"$f":"IFERROR(VLOOKUP(A41,dapim,2),\"\")","v":"כ:"},null,null,null,null,null,40,{"$f":"IFERROR(VLOOKUP(H41,dapim,2),\"\")","v":"מ."},null,null,null,null,null,55,{"$f":"IFERROR(VLOOKUP(O41,dapim,2),\"\")","v":"נה."},null,null,null,null,null,null,{"$f":"IFERROR(VLOOKUP(V41,dapim,2),\"\")","v":""}]

{"sheet":"לפני הסתרת עמודות","index":1,"n_rows":41,"n_cols":23,"rows_kept":41,"cut":false,"hidden":false,"merged":[[38,8,38,13],[21,15,21,20],[36,15,36,20],[3,22,3,27],[25,22,25,27],[0,11,1,13],[0,15,1,17],[2,1,2,6],[26,1,26,6],[37,1,37,6],[17,8,17,13],[28,8,28,13]]}
["בס\"ד",null,null,null,null,null,null,null,null,null,null,"מסכת",null,null,null,"ברכות"]
[]
[1,"פרק א - מאימתי",null,null,null,null,null,19,{"$f":"VLOOKUP(H3,dapim,2)","v":"יט."},null,null,null,null,null,36,{"$f":"VLOOKUP(O3,dapim,2)","v":"לו."},null,null,null,null,null,53.5,{"$f":"VLOOKUP(V3,dapim,2)","v":"נג:"}]
[2,{"$f":"VLOOKUP(A4,dapim,2)","v":"ב."},null,null,null,null,null,19.5,"יט:",null,null,null,null,null,36.5,"לו:",null,null,null,null,null,1,"פרק ט - הרואה"]
[2.5,"ב:",null,null,null,null,null,20,"כ.",null,null,null,null,null,37,"לז.",null,null,null,null,null,54,"נד."]
[3,"ג.",null,null,null,null,null,20.5,"כ:",null,null,null,null,null,37.5,"לז:",null,null,null,null,null,54.5,"נד:"]
[3.5,"ג:",null,null,null,null,null,21,"כא.",null,null,null,null,null,38,"לח.",null,null,null,null,null,55,"נה."]
[4,"ד.",null,null,null,null,null,21.5,"כא:",null,null,null,null,null,38.5,"לח:",null,null,null,null,null,55.5,"נה:"]
[4.5,"ד:",null,null,null,null,null,22,"כב.",null,null,null,null,null,39,"לט.",null,null,null,null,null,56,"נו."]
[5,"ה.",null,null,null,null,null,22.5,"כב:",null,null,null,null,null,39.5,"לט:",null,null,null,null,null,56.5,"נו:"]
[5.5,"ה:",null,null,null,null,null,23,"כג.",null,null,null,null,null,40,"מ.",null,null,null,null,null,57,"נז."]
[6,"ו.",null,null,null,null,null,23.5,"כג:",null,null,null,null,null,40.5,"מ:",null,null,null,null,null,57.5,"נז:"]
[6.5,"ו:",null,null,null,null,null,24,"כד.",null,null,null,null,null,41,"מא.",null,null,null,null,null,58,"נח."]
[7,"ז.",null,null,null,null,null,24.5,"כד:",null,null,null,null,null,41.5,"מא:",null,null,null,null,null,58.5,"נח:"]
[7.5,{"$f":"VLOOKUP(A15,dapim,2)","v":"ז:"},null,null,null,null,null,25,"כה.",null,null,null,null,null,42,"מב.",null,null,null,null,null,59,"נט."]
[8,"ח.",null,null,null,null,null,25.5,"כה:",null,null,null,null,null,42.5,"מב:",null,null,null,null,null,59.5,"נט:"]
[8.5,"ח:",null,null,null,null,null,26,"כו.",null,null,null,null,null,43,"מג.",null,null,null,null,null,60,"ס."]
[9,"ט.",null,null,null,null,null,1,"פרק ד - תפילת השחר",null,null,null,null,null,43.5,"מג:",null,null,null,null,null,60.5,"ס:"]
[9.5,"ט:",null,null,null,null,null,26,{"$f":"VLOOKUP(H19,dapim,2)","v":"כו."},null,null,null,null,null,44,"מד.",null,null,null,null,null,61,{"$f":"VLOOKUP(V19,dapim,2)","v":"סא."}]
[10,"י.",null,null,null,null,null,26.5,"כו:",null,null,null,null,null,44.5,"מד:",null,null,null,null,null,61.5,"סא:"]
[10.5,"י:",null,null,null,null,null,27,"כז.",null,null,null,null,null,45,"מה.",null,null,null,null,null,62,"סב."]
[11,"יא.",null,null,null,null,null,27.5,"כז:",null,null,null,null,null,1,"פרק ז - שלושה שאכלו",null,null,null,null,null,62.5,"סב:"]
[11.5,"יא:",null,null,null,null,null,28,"כח.",null,null,null,null,null,45,{"$f":"VLOOKUP(O23,dapim,2)","v":"מה."},null,null,null,null,null,63,"סג."]
[12,"יב.",null,null,null,null,null,28.5,"כח:",null,null,null,null,null,45.5,"מה:",null,null,null,null,null,63.5,"סג:"]
[12.5,"יב:",null,null,null,null,null,29,"כט.",null,null,null,null,null,46,"מו.",null,null,null,null,null,64,"סד."]
[13,"יג.",null,null,null,null,null,29.5,"כט:",null,null,null,null,null,46.5,"מו:",null,null,null,null,null,1,"הדרן עלך מסכת ברכות"]
[1,"פרק ב - היה קורא","פרק ב - היה קורא",null,null,null,null,30,"ל.",null,null,null,null,null,47,"מז."]
[13,{"$f":"VLOOKUP(A28,dapim,2)","v":"יג."},null,null,null,null,null,30.5,"ל:",null,null,null,null,null,47.5,"מז:"]
[13.5,"יג:",null,null,null,null,null,1,"פרק ה - אין עומדין",null,null,null,null,null,48,"מח."]
[14,"יד.",null,null,null,null,null,30.5,{"$f":"VLOOKUP(H30,dapim,2)","v":"ל:"},null,null,null,null,null,48.5,"מח:"]
[14.5,"יד:",null,null,null,null,null,31,"לא.",null,null,null,null,null,49,"מט."]
[15,"טו.",null,null,null,null,null,31.5,"לא:",null,null,null,null,null,49.5,"מט:"]
[15.5,"טו:",null,null,null,null,null,32,"לב.",null,null,null,null,null,50,"נ."]
[16,"טז.",null,null,null,null,null,32.5,"לב:",null,null,null,null,null,50.5,"נ:"]
[16.5,"טז:",null,null,null,null,null,33,"לג.",null,null,null,null,null,51,"נא."]
[17,"יז.",null,null,null,null,null,33.5,"לג:",null,null,null,null,null,51.5,"נא:"]
[17.5,"יז:",null,null,null,null,null,34,"לד.",null,null,null,null,null,1,"פרק ח - אלו דברים"]
[1,"פרק ג - מי שמתו",null,null,null,null,null,34.5,"לד:",null,null,null,null,null,51.5,{"$f":"VLOOKUP(O38,dapim,2)","v":"נא:"}]
[17.5,{"$f":"VLOOKUP(A39,dapim,2)","v":"יז:"},null,null,null,null,null,1,"פרק ו - כיצד מברכין",null,null,null,null,null,52,{"$f":"VLOOKUP(O39,dapim,2)","v":"נב."}]
[18,{"$f":"VLOOKUP(A40,dapim,2)","v":"יח."},null,null,null,null,null,35,{"$f":"VLOOKUP(H40,dapim,2)","v":"לה."},null,null,null,null,null,52.5,{"$f":"VLOOKUP(O40,dapim,2)","v":"נב:"}]
[18.5,{"$f":"VLOOKUP(A41,dapim,2)","v":"יח:"},null,null,null,null,null,35.5,{"$f":"VLOOKUP(H41,dapim,2)","v":"לה:"},null,null,null,null,null,53,{"$f":"VLOOKUP(O41,dapim,2)","v":"נג."}]

{"sheet":"לאחר הסתרת עמודות","index":2,"n_rows":41,"n_cols":23,"rows_kept":41,"cut":false,"hidden":false,"merged":[[38,8,38,13],[0,11,1,13],[0,15,1,17],[2,1,2,6],[3,22,3,27],[17,8,17,13],[21,15,21,20],[25,22,25,27],[26,1,26,6],[28,8,28,13],[36,15,36,20],[37,1,37,6]]}
[null,"בס\"ד",null,null,null,null,null,null,null,null,null,"מסכת",null,null,null,"ברכות"]
[]
[null,"פרק א - מאימתי",null,null,null,null,null,19,{"$f":"VLOOKUP(H3,dapim,2)","v":"יט."},null,null,null,null,null,36,{"$f":"VLOOKUP(O3,dapim,2)","v":"לו."},null,null,null,null,null,53.5,{"$f":"VLOOKUP(V3,dapim,2)","v":"נג:"}]
[2,{"$f":"VLOOKUP(A4,dapim,2)","v":"ב."},null,null,null,null,null,19.5,"יט:",null,null,null,null,null,36.5,"לו:",null,null,null,null,null,null,"פרק ט - הרואה"]
[2.5,"ב:",null,null,null,null,null,20,"כ.",null,null,null,null,null,37,"לז.",null,null,null,null,null,54,"נד."]
[3,"ג.",null,null,null,null,null,20.5,"כ:",null,null,null,null,null,37.5,"לז:",null,null,null,null,null,54.5,"נד:"]
[3.5,"ג:",null,null,null,null,null,21,"כא.",null,null,null,null,null,38,"לח.",null,null,null,null,null,55,"נה."]
[4,"ד.",null,null,null,null,null,21.5,"כא:",null,null,null,null,null,38.5,"לח:",null,null,null,null,null,55.5,"נה:"]
[4.5,"ד:",null,null,null,null,null,22,"כב.",null,null,null,null,null,39,"לט.",null,null,null,null,null,56,"נו."]
[5,"ה.",null,null,null,null,null,22.5,"כב:",null,null,null,null,null,39.5,"לט:",null,null,null,null,null,56.5,"נו:"]
[5.5,"ה:",null,null,null,null,null,23,"כג.",null,null,null,null,null,40,"מ.",null,null,null,null,null,57,"נז."]
[6,"ו.",null,null,null,null,null,23.5,"כג:",null,null,null,null,null,40.5,"מ:",null,null,null,null,null,57.5,"נז:"]
[6.5,"ו:",null,null,null,null,null,24,"כד.",null,null,null,null,null,41,"מא.",null,null,null,null,null,58,"נח."]
[7,"ז.",null,null,null,null,null,24.5,"כד:",null,null,null,null,null,41.5,"מא:",null,null,null,null,null,58.5,"נח:"]
[7.5,"ז:",null,null,null,null,null,25,"כה.",null,null,null,null,null,42,"מב.",null,null,null,null,null,59,"נט."]
[8,"ח.",null,null,null,null,null,25.5,"כה:",null,null,null,null,null,42.5,"מב:",null,null,null,null,null,59.5,"נט:"]
[8.5,"ח:",null,null,null,null,null,26,"כו.",null,null,null,null,null,43,"מג.",null,null,null,null,null,60,"ס."]
[9,"ט.",null,null,null,null,null,null,"פרק ד - תפילת השחר",null,null,null,null,null,43.5,"מג:",null,null,null,null,null,60.5,"ס:"]
[9.5,"ט:",null,null,null,null,null,26,{"$f":"VLOOKUP(H19,dapim,2)","v":"כו."},null,null,null,null,null,44,"מד.",null,null,null,null,null,61,"סא."]
[10,"י.",null,null,null,null,null,26.5,"כו:",null,null,null,null,null,44.5,"מד:",null,null,null,null,null,61.5,"סא:"]
[10.5,"י:",null,null,null,null,null,27,"כז.",null,null,null,null,null,45,"מה.",null,null,null,null,null,62,"סב."]
[11,"יא.",null,null,null,null,null,27.5,"כז:",null,null,null,null,null,null,"פרק ז - שלושה שאכלו",null,null,null,null,null,62.5,"סב:"]
[11.5,"יא:",null,null,null,null,null,28,"כח.",null,null,null,null,null,45,{"$f":"VLOOKUP(O23,dapim,2)","v":"מה."},null,null,null,null,null,63,"סג."]
[12,"יב.",null,null,null,null,null,28.5,"כח:",null,null,null,null,null,45.5,"מה:",null,null,null,null,null,63.5,"סג:"]
[12.5,"יב:",null,null,null,null,null,29,"כט.",null,null,null,null,null,46,"מו.",null,null,null,null,null,64,"סד."]
[13,"יג.",null,null,null,null,null,29.5,"כט:",null,null,null,null,null,46.5,"מו:",null,null,null,null,null,null,"הדרן עלך מסכת ברכות"]
[null,"פרק ב - היה קורא","פרק ב - היה קורא",null,null,null,null,30,"ל.",null,null,null,null,null,47,"מז."]
[13,{"$f":"VLOOKUP(A28,dapim,2)","v":"יג."},null,null,null,null,null,30.5,"ל:",null,null,null,null,null,47.5,"מז:"]
[13.5,"יג:",null,null,null,null,null,null,"פרק ה - אין עומדין",null,null,null,null,null,48,"מח."]
[14,"יד.",null,null,null,null,null,30.5,{"$f":"VLOOKUP(H30,dapim,2)","v":"ל:"},null,null,null,null,null,48.5,"מח:"]
[14.5,"יד:",null,null,null,null,null,31,"לא.",null,null,null,null,null,49,"מט."]
[15,"טו.",null,null,null,null,null,31.5,"לא:",null,null,null,null,null,49.5,"מט:"]
[15.5,"טו:",null,null,null,null,null,32,"לב.",null,null,null,null,null,50,"נ."]
[16,"טז.",null,null,null,null,null,32.5,"לב:",null,null,null,null,null,50.5,"נ:"]
[16.5,"טז:",null,null,null,null,null,33,"לג.",null,null,null,null,null,51,"נא."]
[17,"יז.",null,null,null,null,null,33.5,"לג:",null,null,null,null,null,51.5,"נא:"]
[17.5,"יז:",null,null,null,null,null,34,"לד.",null,null,null,null,null,null,"פרק ח - אלו דברים"]
[null,"פרק ג - מי שמתו",null,null,null,null,null,34.5,"לד:",null,null,null,null,null,51.5,{"$f":"VLOOKUP(O38,dapim,2)","v":"נא:"}]
[17.5,{"$f":"VLOOKUP(A39,dapim,2)","v":"יז:"},null,null,null,null,null,null,"פרק ו - כיצד מברכין",null,null,null,null,null,52,{"$f":"VLOOKUP(O39,dapim,2)","v":"נב."}]
[18,{"$f":"VLOOKUP(A40,dapim,2)","v":"יח."},null,null,null,null,null,35,{"$f":"VLOOKUP(H40,dapim,2)","v":"לה."},null,null,null,null,null,52.5,{"$f":"VLOOKUP(O40,dapim,2)","v":"נב:"}]
[18.5,{"$f":"VLOOKUP(A41,dapim,2)","v":"יח:"},null,null,null,null,null,35.5,{"$f":"VLOOKUP(H41,dapim,2)","v":"לה:"},null,null,null,null,null,53,{"$f":"VLOOKUP(O41,dapim,2)","v":"נג."}]

{"sheet":"דפים","index":3,"n_rows":351,"n_cols":11,"rows_kept":351,"cut":false,"hidden":false,"merged":[]}
["בס\"ד","לפי דפים שלמים",null,null,null,null,null,null,null,"לפי עמודים"]
[null,2,"ב",null,null,null,null,null,null,2,"ב."]
[null,3,"ג",null,null,null,null,null,null,2.5,"ב:"]
[null,4,"ד",null,null,null,null,null,null,3,"ג."]
[null,5,"ה",null,null,null,null,null,null,3.5,"ג:"]
[null,6,"ו",null,null,null,null,null,null,4,"ד."]
[null,7,"ז",null,null,null,null,null,null,4.5,"ד:"]
[null,8,"ח",null,null,null,null,null,null,5,"ה."]
[null,9,"ט",null,null,null,null,null,null,5.5,"ה:"]
[null,10,"י",null,null,null,null,null,null,6,"ו."]
[null,11,"יא",null,null,null,null,null,null,6.5,"ו:"]
[null,12,"יב",null,null,null,null,null,null,7,"ז."]
[null,13,"יג",null,null,null,null,null,null,7.5,"ז:"]
[null,14,"יד",null,null,null,null,null,null,8,"ח."]
[null,15,"טו",null,null,null,null,null,null,8.5,"ח:"]
[null,16,"טז",null,null,null,null,null,null,9,"ט."]
[null,17,"יז",null,null,null,null,null,null,9.5,"ט:"]
[null,18,"יח",null,null,null,null,null,null,10,"י."]
[null,19,"יט",null,null,null,null,null,null,10.5,"י:"]
[null,20,"כ",null,null,null,null,null,null,11,"יא."]
[null,21,"כא",null,null,null,null,null,null,11.5,"יא:"]
[null,22,"כב",null,null,null,null,null,null,12,"יב."]
[null,23,"כג",null,null,null,null,null,null,12.5,"יב:"]
[null,24,"כד",null,null,null,null,null,null,13,"יג."]
[null,25,"כה",null,null,null,null,null,null,13.5,"יג:"]
[null,26,"כו",null,null,null,null,null,null,14,"יד."]
[null,27,"כז",null,null,null,null,null,null,14.5,"יד:"]
[null,28,"כח",null,null,null,null,null,null,15,"טו."]
[null,29,"כט",null,null,null,null,null,null,15.5,"טו:"]
[null,30,"ל",null,null,null,null,null,null,16,"טז."]
[null,31,"לא",null,null,null,null,null,null,16.5,"טז:"]
[null,32,"לב",null,null,null,null,null,null,17,"יז."]
[null,33,"לג",null,null,null,null,null,null,17.5,"יז:"]
[null,34,"לד",null,null,null,null,null,null,18,"יח."]
[null,35,"לה",null,null,null,null,null,null,18.5,"יח:"]
[null,36,"לו",null,null,null,null,null,null,19,"יט."]
[null,37,"לז",null,null,null,null,null,null,19.5,"יט:"]
[null,38,"לח",null,null,null,null,null,null,20,"כ."]
[null,39,"לט",null,null,null,null,null,null,20.5,"כ:"]
[null,40,"מ",null,null,null,null,null,null,21,"כא."]
[null,41,"מא",null,null,null,null,null,null,21.5,"כא:"]
[null,42,"מב",null,null,null,null,null,null,22,"כב."]
[null,43,"מג",null,null,null,null,null,null,22.5,"כב:"]
[null,44,"מד",null,null,null,null,null,null,23,"כג."]
[null,45,"מה",null,null,null,null,null,null,23.5,"כג:"]
[null,46,"מו",null,null,null,null,null,null,24,"כד."]
[null,47,"מז",null,null,null,null,null,null,24.5,"כד:"]
[null,48,"מח",null,null,null,null,null,null,25,"כה."]
[null,49,"מט",null,null,null,null,null,null,25.5,"כה:"]
[null,50,"נ",null,null,null,null,null,null,26,"כו."]
[null,51,"נא",null,null,null,null,null,null,26.5,"כו:"]
[null,52,"נב",null,null,null,null,null,null,27,"כז."]
[null,53,"נג",null,null,null,null,null,null,27.5,"כז:"]
[null,54,"נד",null,null,null,null,null,null,28,"כח."]
[null,55,"נה",null,null,null,null,null,null,28.5,"כח:"]
[null,56,"נו",null,null,null,null,null,null,29,"כט."]
[null,57,"נז",null,null,null,null,null,null,29.5,"כט:"]
[null,58,"נח",null,null,null,null,null,null,30,"ל."]
[null,59,"נט",null,null,null,null,null,null,30.5,"ל:"]
[null,60,"ס",null,null,null,null,null,null,31,"לא."]
[null,61,"סא",null,null,null,null,null,null,31.5,"לא:"]
[null,62,"סב",null,null,null,null,null,null,32,"לב."]
[null,63,"סג",null,null,null,null,null,null,32.5,"לב:"]
[null,64,"סד",null,null,null,null,null,null,33,"לג."]
[null,65,"סה",null,null,null,null,null,null,33.5,"לג:"]
[null,66,"סו",null,null,null,null,null,null,34,"לד."]
[null,67,"סז",null,null,null,null,null,null,34.5,"לד:"]
[null,68,"סח",null,null,null,null,null,null,35,"לה."]
[null,69,"סט",null,null,null,null,null,null,35.5,"לה:"]
[null,70,"ע",null,null,null,null,null,null,36,"לו."]
[null,71,"עא",null,null,null,null,null,null,36.5,"לו:"]
[null,72,"עב",null,null,null,null,null,null,37,"לז."]
[null,73,"עג",null,null,null,null,null,null,37.5,"לז:"]
[null,74,"עד",null,null,null,null,null,null,38,"לח."]
[null,75,"עה",null,null,null,null,null,null,38.5,"לח:"]
[null,76,"עו",null,null,null,null,null,null,39,"לט."]
[null,77,"עז",null,null,null,null,null,null,39.5,"לט:"]
[null,78,"עח",null,null,null,null,null,null,40,"מ."]
[null,79,"עט",null,null,null,null,null,null,40.5,"מ:"]
[null,80,"פ",null,null,null,null,null,null,41,"מא."]
[null,81,"פא",null,null,null,null,null,null,41.5,"מא:"]
[null,82,"פב",null,null,null,null,null,null,42,"מב."]
[null,83,"פג",null,null,null,null,null,null,42.5,"מב:"]
[null,84,"פד",null,null,null,null,null,null,43,"מג."]
[null,85,"פה",null,null,null,null,null,null,43.5,"מג:"]
[null,86,"פו",null,null,null,null,null,null,44,"מד."]
[null,87,"פז",null,null,null,null,null,null,44.5,"מד:"]
[null,88,"פח",null,null,null,null,null,null,45,"מה."]
[null,89,"פט",null,null,null,null,null,null,45.5,"מה:"]
[null,90,"צ",null,null,null,null,null,null,46,"מו."]
[null,91,"צא",null,null,null,null,null,null,46.5,"מו:"]
[null,92,"צב",null,null,null,null,null,null,47,"מז."]
[null,93,"צג",null,null,null,null,null,null,47.5,"מז:"]
[null,94,"צד",null,null,null,null,null,null,48,"מח."]
[null,95,"צה",null,null,null,null,null,null,48.5,"מח:"]
[null,96,"צו",null,null,null,null,null,null,49,"מט."]
[null,97,"צז",null,null,null,null,null,null,49.5,"מט:"]
[null,98,"צח",null,null,null,null,null,null,50,"נ."]
[null,99,"צט",null,null,null,null,null,null,50.5,"נ:"]
[null,100,"ק",null,null,null,null,null,null,51,"נא."]
[null,101,"קא",null,null,null,null,null,null,51.5,"נא:"]
[null,102,"קב",null,null,null,null,null,null,52,"נב."]
[null,103,"קג",null,null,null,null,null,null,52.5,"נב:"]
[null,104,"קד",null,null,null,null,null,null,53,"נג."]
[null,105,"קה",null,null,null,null,null,null,53.5,"נג:"]
[null,106,"קו",null,null,null,null,null,null,54,"נד."]
[null,107,"קז",null,null,null,null,null,null,54.5,"נד:"]
[null,108,"קח",null,null,null,null,null,null,55,"נה."]
[null,109,"קט",null,null,null,null,null,null,55.5,"נה:"]
[null,110,"קי",null,null,null,null,null,null,56,"נו."]
[null,111,"קיא",null,null,null,null,null,null,56.5,"נו:"]
[null,112,"קיב",null,null,null,null,null,null,57,"נז."]
[null,113,"קיג",null,null,null,null,null,null,57.5,"נז:"]
[null,114,"קיד",null,null,null,null,null,null,58,"נח."]
[null,115,"קטו",null,null,null,null,null,null,58.5,"נח:"]
[null,116,"קטז",null,null,null,null,null,null,59,"נט."]
[null,117,"קיז",null,null,null,null,null,null,59.5,"נט:"]
[null,118,"קיח",null,null,null,null,null,null,60,"ס."]
[null,119,"קיט",null,null,null,null,null,null,60.5,"ס:"]
[null,120,"קכ",null,null,null,null,null,null,61,"סא."]
[null,121,"קכא",null,null,null,null,null,null,61.5,"סא:"]
[null,122,"קכב",null,null,null,null,null,null,62,"סב."]
[null,123,"קכג",null,null,null,null,null,null,62.5,"סב:"]
[null,124,"קכד",null,null,null,null,null,null,63,"סג."]
[null,125,"קכה",null,null,null,null,null,null,63.5,"סג:"]
[null,126,"קכו",null,null,null,null,null,null,64,"סד."]
[null,127,"קכז",null,null,null,null,null,null,64.5,"סד:"]
[null,128,"קכח",null,null,null,null,null,null,65,"סה."]
[null,129,"קכט",null,null,null,null,null,null,65.5,"סה:"]
[null,130,"קל",null,null,null,null,null,null,66,"סו."]
[null,131,"קלא",null,null,null,null,null,null,66.5,"סו:"]
[null,132,"קלב",null,null,null,null,null,null,67,"סז."]
[null,133,"קלג",null,null,null,null,null,null,67.5,"סז:"]
[null,134,"קלד",null,null,null,null,null,null,68,"סח."]
[null,135,"קלה",null,null,null,null,null,null,68.5,"סח:"]
[null,136,"קלו",null,null,null,null,null,null,69,"סט."]
[null,137,"קלז",null,null,null,null,null,null,69.5,"סט:"]
[null,138,"קלח",null,null,null,null,null,null,70,"ע."]
[null,139,"קלט",null,null,null,null,null,null,70.5,"ע:"]
[null,140,"קמ",null,null,null,null,null,null,71,"עא."]
[null,141,"קמא",null,null,null,null,null,null,71.5,"עא:"]
[null,142,"קמב",null,null,null,null,null,null,72,"עב."]
[null,143,"קמג",null,null,null,null,null,null,72.5,"עב:"]
[null,144,"קמד",null,null,null,null,null,null,73,"עג."]
[null,145,"קמה",null,null,null,null,null,null,73.5,"עג:"]
[null,146,"קמו",null,null,null,null,null,null,74,"עד."]
[null,147,"קמז",null,null,null,null,null,null,74.5,"עד:"]
[null,148,"קמח",null,null,null,null,null,null,75,"עה."]
[null,149,"קמט",null,null,null,null,null,null,75.5,"עה:"]
[null,150,"קנ",null,null,null,null,null,null,76,"עו."]
[null,151,"קנא",null,null,null,null,null,null,76.5,"עו:"]
[null,152,"קנב",null,null,null,null,null,null,77,"עז."]
[null,153,"קנג",null,null,null,null,null,null,77.5,"עז:"]
[null,154,"קנד",null,null,null,null,null,null,78,"עח."]
[null,155,"קנה",null,null,null,null,null,null,78.5,"עח:"]
[null,156,"קנו",null,null,null,null,null,null,79,"עט."]
[null,157,"קנז",null,null,null,null,null,null,79.5,"עט:"]
[null,158,"קנח",null,null,null,null,null,null,80,"פ."]
[null,159,"קנט",null,null,null,null,null,null,80.5,"פ:"]
[null,160,"קס",null,null,null,null,null,null,81,"פא."]
[null,161,"קסא",null,null,null,null,null,null,81.5,"פא:"]
[null,162,"קסב",null,null,null,null,null,null,82,"פב."]
[null,163,"קסג",null,null,null,null,null,null,82.5,"פב:"]
[null,164,"קסד",null,null,null,null,null,null,83,"פג."]
[null,165,"קסה",null,null,null,null,null,null,83.5,"פג:"]
[null,166,"קסו",null,null,null,null,null,null,84,"פד."]
[null,167,"קסז",null,null,null,null,null,null,84.5,"פד:"]
[null,168,"קסח",null,null,null,null,null,null,85,"פה."]
[null,169,"קסט",null,null,null,null,null,null,85.5,"פה:"]
[null,170,"קע",null,null,null,null,null,null,86,"פו."]
[null,171,"קעא",null,null,null,null,null,null,86.5,"פו:"]
[null,172,"קעב",null,null,null,null,null,null,87,"פז."]
[null,173,"קעג",null,null,null,null,null,null,87.5,"פז:"]
[null,174,"קעד",null,null,null,null,null,null,88,"פח."]
[null,175,"קעה",null,null,null,null,null,null,88.5,"פח:"]
[null,176,"קעו",null,null,null,null,null,null,89,"פט."]
[null,null,null,null,null,null,null,null,null,89.5,"פט:"]
[null,null,null,null,null,null,null,null,null,90,"צ."]
[null,null,null,null,null,null,null,null,null,90.5,"צ:"]
[null,null,null,null,null,null,null,null,null,91,"צא."]
[null,null,null,null,null,null,null,null,null,91.5,"צא:"]
[null,null,null,null,null,null,null,null,null,92,"צב."]
[null,null,null,null,null,null,null,null,null,92.5,"צב:"]
[null,null,null,null,null,null,null,null,null,93,"צג."]
[null,null,null,null,null,null,null,null,null,93.5,"צג:"]
[null,null,null,null,null,null,null,null,null,94,"צד."]
[null,null,null,null,null,null,null,null,null,94.5,"צד:"]
[null,null,null,null,null,null,null,null,null,95,"צה."]
[null,null,null,null,null,null,null,null,null,95.5,"צה:"]
[null,null,null,null,null,null,null,null,null,96,"צו."]
[null,null,null,null,null,null,null,null,null,96.5,"צו:"]
[null,null,null,null,null,null,null,null,null,97,"צז."]
[null,null,null,null,null,null,null,null,null,97.5,"צז:"]
[null,null,null,null,null,null,null,null,null,98,"צח."]
[null,null,null,null,null,null,null,null,null,98.5,"צח:"]
[null,null,null,null,null,null,null,null,null,99,"צט."]
[null,null,null,null,null,null,null,null,null,99.5,"צט:"]
[null,null,null,null,null,null,null,null,null,100,"ק."]
[null,null,null,null,null,null,null,null,null,100.5,"ק:"]
[null,null,null,null,null,null,null,null,null,101,"קא."]
[null,null,null,null,null,null,null,null,null,101.5,"קא:"]
[null,null,null,null,null,null,null,null,null,102,"קב."]
[null,null,null,null,null,null,null,null,null,102.5,"קב:"]
[null,null,null,null,null,null,null,null,null,103,"קג."]
[null,null,null,null,null,null,null,null,null,103.5,"קג:"]
[null,null,null,null,null,null,null,null,null,104,"קד."]
[null,null,null,null,null,null,null,null,null,104.5,"קד:"]
[null,null,null,null,null,null,null,null,null,105,"קה."]
[null,null,null,null,null,null,null,null,null,105.5,"קה:"]
[null,null,null,null,null,null,null,null,null,106,"קו."]
[null,null,null,null,null,null,null,null,null,106.5,"קו:"]
[null,null,null,null,null,null,null,null,null,107,"קז."]
[null,null,null,null,null,null,null,null,null,107.5,"קז:"]
[null,null,null,null,null,null,null,null,null,108,"קח."]
[null,null,null,null,null,null,null,null,null,108.5,"קח:"]
[null,null,null,null,null,null,null,null,null,109,"קט."]
[null,null,null,null,null,null,null,null,null,109.5,"קט:"]
[null,null,null,null,null,null,null,null,null,110,"קי."]
[null,null,null,null,null,null,null,null,null,110.5,"קי:"]
[null,null,null,null,null,null,null,null,null,111,"קיא."]
[null,null,null,null,null,null,null,null,null,111.5,"קיא:"]
[null,null,null,null,null,null,null,null,null,112,"קיב."]
[null,null,null,null,null,null,null,null,null,112.5,"קיב:"]
[null,null,null,null,null,null,null,null,null,113,"קיג."]
[null,null,null,null,null,null,null,null,null,113.5,"קיג:"]
[null,null,null,null,null,null,null,null,null,114,"קיד."]
[null,null,null,null,null,null,null,null,null,114.5,"קיד:"]
[null,null,null,null,null,null,null,null,null,115,"קטו."]
[null,null,null,null,null,null,null,null,null,115.5,"קטו:"]
[null,null,null,null,null,null,null,null,null,116,"קטז."]
[null,null,null,null,null,null,null,null,null,116.5,"קטז:"]
[null,null,null,null,null,null,null,null,null,117,"קיז."]
[null,null,null,null,null,null,null,null,null,117.5,"קיז:"]
[null,null,null,null,null,null,null,null,null,118,"קיח."]
[null,null,null,null,null,null,null,null,null,118.5,"קיח:"]
[null,null,null,null,null,null,null,null,null,119,"קיט."]
[null,null,null,null,null,null,null,null,null,119.5,"קיט:"]
[null,null,null,null,null,null,null,null,null,120,"קכ."]
[null,null,null,null,null,null,null,null,null,120.5,"קכ:"]
[null,null,null,null,null,null,null,null,null,121,"קכא."]
[null,null,null,null,null,null,null,null,null,121.5,"קכא:"]
[null,null,null,null,null,null,null,null,null,122,"קכב."]
[null,null,null,null,null,null,null,null,null,122.5,"קכב:"]
[null,null,null,null,null,null,null,null,null,123,"קכג."]
[null,null,null,null,null,null,null,null,null,123.5,"קכג:"]
[null,null,null,null,null,null,null,null,null,124,"קכד."]
[null,null,null,null,null,null,null,null,null,124.5,"קכד:"]
[null,null,null,null,null,null,null,null,null,125,"קכה."]
[null,null,null,null,null,null,null,null,null,125.5,"קכה:"]
[null,null,null,null,null,null,null,null,null,126,"קכו."]
[null,null,null,null,null,null,null,null,null,126.5,"קכו:"]
[null,null,null,null,null,null,null,null,null,127,"קכז."]
[null,null,null,null,null,null,null,null,null,127.5,"קכז:"]
[null,null,null,null,null,null,null,null,null,128,"קכח."]
[null,null,null,null,null,null,null,null,null,128.5,"קכח:"]
[null,null,null,null,null,null,null,null,null,129,"קכט."]
[null,null,null,null,null,null,null,null,null,129.5,"קכט:"]
[null,null,null,null,null,null,null,null,null,130,"קל."]
[null,null,null,null,null,null,null,null,null,130.5,"קל:"]
[null,null,null,null,null,null,null,null,null,131,"קלא."]
[null,null,null,null,null,null,null,null,null,131.5,"קלא:"]
[null,null,null,null,null,null,null,null,null,132,"קלב."]
[null,null,null,null,null,null,null,null,null,132.5,"קלב:"]
[null,null,null,null,null,null,null,null,null,133,"קלג."]
[null,null,null,null,null,null,null,null,null,133.5,"קלג:"]
[null,null,null,null,null,null,null,null,null,134,"קלד."]
[null,null,null,null,null,null,null,null,null,134.5,"קלד:"]
[null,null,null,null,null,null,null,null,null,135,"קלה."]
[null,null,null,null,null,null,null,null,null,135.5,"קלה:"]
[null,null,null,null,null,null,null,null,null,136,"קלו."]
[null,null,null,null,null,null,null,null,null,136.5,"קלו:"]
[null,null,null,null,null,null,null,null,null,137,"קלז."]
[null,null,null,null,null,null,null,null,null,137.5,"קלז:"]
[null,null,null,null,null,null,null,null,null,138,"קלח."]
[null,null,null,null,null,null,null,null,null,138.5,"קלח:"]
[null,null,null,null,null,null,null,null,null,139,"קלט."]
[null,null,null,null,null,null,null,null,null,139.5,"קלט:"]
[null,null,null,null,null,null,null,null,null,140,"קמ."]
[null,null,null,null,null,null,null,null,null,140.5,"קמ:"]
[null,null,null,null,null,null,null,null,null,141,"קמא."]
[null,null,null,null,null,null,null,null,null,141.5,"קמא:"]
[null,null,null,null,null,null,null,null,null,142,"קמב."]
[null,null,null,null,null,null,null,null,null,142.5,"קמב:"]
[null,null,null,null,null,null,null,null,null,143,"קמג."]
[null,null,null,null,null,null,null,null,null,143.5,"קמג:"]
[null,null,null,null,null,null,null,null,null,144,"קמד."]
[null,null,null,null,null,null,null,null,null,144.5,"קמד:"]
[null,null,null,null,null,null,null,null,null,145,"קמה."]
[null,null,null,null,null,null,null,null,null,145.5,"קמה:"]
[null,null,null,null,null,null,null,null,null,146,"קמו."]
[null,null,null,null,null,null,null,null,null,146.5,"קמו:"]
[null,null,null,null,null,null,null,null,null,147,"קמז."]
[null,null,null,null,null,null,null,null,null,147.5,"קמז:"]
[null,null,null,null,null,null,null,null,null,148,"קמח."]
[null,null,null,null,null,null,null,null,null,148.5,"קמח:"]
[null,null,null,null,null,null,null,null,null,149,"קמט."]
[null,null,null,null,null,null,null,null,null,149.5,"קמט:"]
[null,null,null,null,null,null,null,null,null,150,"קנ."]
[null,null,null,null,null,null,null,null,null,150.5,"קנ:"]
[null,null,null,null,null,null,null,null,null,151,"קנא."]
[null,null,null,null,null,null,null,null,null,151.5,"קנא:"]
[null,null,null,null,null,null,null,null,null,152,"קנב."]
[null,null,null,null,null,null,null,null,null,152.5,"קנב:"]
[null,null,null,null,null,null,null,null,null,153,"קנג."]
[null,null,null,null,null,null,null,null,null,153.5,"קנג:"]
[null,null,null,null,null,null,null,null,null,154,"קנד."]
[null,null,null,null,null,null,null,null,null,154.5,"קנד:"]
[null,null,null,null,null,null,null,null,null,155,"קנה."]
[null,null,null,null,null,null,null,null,null,155.5,"קנה:"]
[null,null,null,null,null,null,null,null,null,156,"קנו."]
[null,null,null,null,null,null,null,null,null,156.5,"קנו:"]
[null,null,null,null,null,null,null,null,null,157,"קנז."]
[null,null,null,null,null,null,null,null,null,157.5,"קנז:"]
[null,null,null,null,null,null,null,null,null,158,"קנח."]
[null,null,null,null,null,null,null,null,null,158.5,"קנח:"]
[null,null,null,null,null,null,null,null,null,159,"קנט."]
[null,null,null,null,null,null,null,null,null,159.5,"קנט:"]
[null,null,null,null,null,null,null,null,null,160,"קס."]
[null,null,null,null,null,null,null,null,null,160.5,"קס:"]
[null,null,null,null,null,null,null,null,null,161,"קסא."]
[null,null,null,null,null,null,null,null,null,161.5,"קסא:"]
[null,null,null,null,null,null,null,null,null,162,"קסב."]
[null,null,null,null,null,null,null,null,null,162.5,"קסב:"]
[null,null,null,null,null,null,null,null,null,163,"קסג."]
[null,null,null,null,null,null,null,null,null,163.5,"קסג:"]
[null,null,null,null,null,null,null,null,null,164,"קסד."]
[null,null,null,null,null,null,null,null,null,164.5,"קסד:"]
[null,null,null,null,null,null,null,null,null,165,"קסה."]
[null,null,null,null,null,null,null,null,null,165.5,"קסה:"]
[null,null,null,null,null,null,null,null,null,166,"קסו."]
[null,null,null,null,null,null,null,null,null,166.5,"קסו:"]
[null,null,null,null,null,null,null,null,null,167,"קסז."]
[null,null,null,null,null,null,null,null,null,167.5,"קסז:"]
[null,null,null,null,null,null,null,null,null,168,"קסח."]
[null,null,null,null,null,null,null,null,null,168.5,"קסח:"]
[null,null,null,null,null,null,null,null,null,169,"קסט."]
[null,null,null,null,null,null,null,null,null,169.5,"קסט:"]
[null,null,null,null,null,null,null,null,null,170,"קע."]
[null,null,null,null,null,null,null,null,null,170.5,"קע:"]
[null,null,null,null,null,null,null,null,null,171,"קעא."]
[null,null,null,null,null,null,null,null,null,171.5,"קעא:"]
[null,null,null,null,null,null,null,null,null,172,"קעב."]
[null,null,null,null,null,null,null,null,null,172.5,"קעב:"]
[null,null,null,null,null,null,null,null,null,173,"קעג."]
[null,null,null,null,null,null,null,null,null,173.5,"קעג:"]
[null,null,null,null,null,null,null,null,null,174,"קעד."]
[null,null,null,null,null,null,null,null,null,174.5,"קעד:"]
[null,null,null,null,null,null,null,null,null,175,"קעה."]
[null,null,null,null,null,null,null,null,null,175.5,"קעה:"]
[null,null,null,null,null,null,null,null,null,176,"קעו."]
[null,null,null,null,null,null,null,null,null,176.5,"קעו:"]